Cogmind - Beta 16.1 @@@ ROGUE MODE // 2026.02.18 @ 03:06:16 Player: Morrion Result: Destroyed by G-47 Trooper with Particle Gun Performance ------------- Evolutions (0) 0 Regions Visited (1) 200 Robots Destroyed (20) 100 Value Destroyed (337) 337 Prototype IDs (0) 0 Alien Tech Used (0) 0 Bonus (0) 0 TOTAL SCORE: 637 Bonus ------- None Cogmind --------- Core Integrity 0/250 Matter 215/300 Energy 125/125 System Corruption 0% Temperature Cool (30) Movement Flying (40) Location -10/Materials Parts ------- > --- POWER (1) -------- Light Ion Engine > --- PROPULSION (2) --- Flight Unit > --- UTILITY (2) ------ Small Storage Unit Weight Redist. System > --- WEAPON (2) ------- Light Assault Rifle Light Assault Rifle > --- INVENTORY (8) ---- Light Ion Engine Light Treads Flight Unit Flight Unit Heat Sink Transport Network Coupler Peak State ------------ > --- POWER ------------ Light Ion Engine > --- PROPULSION ------- Aluminum Leg Aluminum Leg > --- UTILITY ---------- Improved Terrain Scanner Improved Terrain Scanner > --- WEAPON ----------- EM Pulse Gun EM Pulse Gun > --- INVENTORY -------- Small Storage Unit Seismic Detector Mining Laser [Rating: 11] Favorites ----------- Power Light Ion Engine Engine Light Ion Engine Propulsion Aluminum Leg Treads Light Treads Leg Aluminum Leg Wheel Wheel Flight Unit Flight Unit Utility Improved Terrain Scanner Device Improved Terrain Scanner Storage Small Storage Unit Weapon EM Pulse Gun Energy Gun EM Pulse Gun Energy Cannon Beam Cannon Ballistic Gun Light Assault Rifle Special Weapon Mining Laser Build | -11 -10 ------- Run | Yrd Mat Slots Evolved . | . . Power . | . . Propulsion . | . . Utility . | . . Weapon . | . . Parts Attached 33 | 13 20 Power 4 | 1 3 Engine 4 | 1 3 Core . | . . Reactor . | . . Propulsion 12 | 4 8 Treads 4 | 2 2 Leg 3 | 2 1 Wheel 1 | . 1 Hover . | . . Flight 4 | . 4 Utility 8 | 4 4 Device 5 | 3 2 Storage 3 | 1 2 Processor . | . . Hackware . | . . Protection . | . . Artifact . | . . Weapon 9 | 4 5 Energy Gun 4 | 3 1 Energy Cannon 1 | . 1 Ballistic Gun 2 | . 2 Ballistic Cannon . | . . Launcher . | . . Special Weapon 2 | 1 1 Impact Weapon . | . . Slashing Weapon . | . . Piercing Weapon . | . . Special Melee Weapon . | . . Unidentified Prototypes . | . . Parts Lost 10 | . 10 Power 2 | . 2 Propulsion 3 | . 3 Utility 2 | . 2 Weapon 3 | . 3 Highest Loss Streak 4 | . 4 To Critical Strikes . | . . Average Backups 2 | 2 2 Power . | . . Propulsion . | . . Utility 1 | 1 1 Weapon . | . . Tool/Special . | . . Unused Backups 5 | . 5 Power 2 | . 2 Propulsion 1 | . 1 Utility 2 | . 2 Weapon . | . . Tool/Special . | . . Average Slot Usage (%) 85 | . 85 Engine 10 | . 10 Treads 6 | . 6 Leg 12 | . 12 Wheel 1 | . 1 Flight 5 | . 5 Device 19 | . 19 Storage 5 | . 5 Energy Gun 18 | . 18 Ballistic Gun 1 | . 1 Special Weapon 1 | . 1 Peak Build Rating 11 | 11 11 Average Rating 9 | 9 7 On Entrance 5 | . 11 Avg Prop Armor Cover (%) 13 | . 13 Naked Turns . | . . Heaviest Build 17 | 13 17 Greatest Support 40 | 40 40 Greatest Overweight (x) 2 | 2 2 Average Overweight (x) . | . . Largest Inventory Capacity 10 | 8 10 Average Capacity 5 | 5 7 Most Carried 7 | 3 7 Average Carried 2 | 2 2 Final Capacity 8 | 5 8 Final Carried 6 | 2 6 Class Distribution -------------------- 91% | Mutant 8% | Scavenger-Mutant Dominant Class ---------------- Scavenger-Mutant | -10/Materials Resources | -11 -10 ----------- Run | Yrd Mat Matter Collected 533 | 400 133 Remotely . | . . Salvage Created 606 | 194 412 Parts 48 | 18 30 Haulers Intercepted 1 | . 1 Recyclers Shooed 2 | . 2 Parts Field Recycled . | . . Retrieved Matter . | . . Parts Self-Destructed . | . . Prevented . | . . Parts Restored . | . . Kills | -11 -10 ------- Run | Yrd Mat Combat Hostiles Destroyed 9 | . 9 Melee 1 | . 1 Guns 6 | . 6 Classes Destroyed 6 | 1 5 Tunneler 8 | 8 . Hauler 1 | . 1 Recycler 1 | . 1 Watcher 1 | . 1 Swarmer 3 | . 3 Grunt 6 | . 6 Best Kill Streak 3 | 2 3 Combat Bots Only 3 | . 3 Max Kills in Single Turn 1 | 1 1 Gunslinging . | . . Exploded . | . . Melee 1 | . 1 Uniques/NPCs Destroyed . | . . Combat | -11 -10 -------- Run | Yrd Mat Hostile Shots Fired 132 | . 132 Missed 48 | . 48 Hits 84 | . 84 Projectile 84 | . 84 Critical Strikes 1 | . 1 Damage Taken 977 | 29 948 Core 255 | 29 226 Absorbed by Shields . | . . Core Remaining (%) 88 | 88 . Volleys Fired 78 | 30 48 Largest 2 | 2 2 Hottest 100 | 100 80 Shots Fired 128 | 48 80 Gun 110 | 36 74 Cannon 2 | . 2 Launcher . | . . Special 16 | 12 4 Kinetic 8 | . 8 Thermal 36 | 12 24 Explosive . | . . Electromagnetic 84 | 36 48 Robot Hit Streak 6 | 4 6 Robot Miss Streak 3 | 3 3 Penetration Max . | . . Secondary Targets 1 | . 1 Max Gunslinging Chain 1 | . 1 Shots Hit Robots 65 | 18 47 Core Hits 26 | 8 18 Critical Kills . | . . Critical Parts Destroyed . | . . Critical Strikes 1 | . 1 Corrupt 1 | . 1 Melee Attacks . | . . Impact . | . . Slashing . | . . Piercing . | . . Sneak Attacks . | . . Combat Hostiles . | . . Follow-up Attacks . | . . Damage Inflicted 841 | 253 588 Guns 773 | 225 548 Cannons 18 | . 18 Explosions 28 | 28 . Melee . | . . Ramming 15 | . 15 Kinetic 53 | . 53 Thermal 174 | 28 146 Explosive . | . . Electromagnetic 599 | 225 374 Impact . | . . Slashing . | . . Piercing . | . . Highest Corruption . | . . Average Corruption . | . . Corruption Purged . | . . Corruption Blocked . | . . Overload Shots . | . . Overflow Damage . | . . Projectiles . | . . Explosions . | . . Melee . | . . Knockbacks . | . . Impact . | . . Kinetic . | . . Secondary . | . . Self-Inflicted Damage 29 | 29 . Shots 1 | 1 . Rammed 8 | . 8 Targets Rammed 11 | . 11 Kicked 2 | . 2 Crushed 1 | . 1 Highest Temperature 216 | 106 216 Average Temperature 42 | 28 56 Received Heat Transfer 519 | . 519 Siege Activations . | . . Martial Activations . | . . Shielding Activations . | . . Robots Disrupted . | . . Combat Hostiles . | . . Robots Corrupted 2 | . 2 Combat Hostiles 2 | . 2 Parts Fried 1 | . 1 Impact Corruptions . | . . Robots Melted . | . . Combat Hostiles . | . . Parts Melted . | . . Heat Transferred 412 | 50 362 Parts Sabotaged . | . . Parts Stolen . | . . Parts Stripped . | . . Power Chain Reactions 1 | 1 . Alert | -11 -10 ------- Run | Yrd Mat Maximum Alert Level . | . . Low Security (%) 100 | 100 100 Level 1 . | . . Level 2 . | . . Level 3 . | . . Level 4 . | . . Level 5 . | . . High Security . | . . Max Security . | . . Peak Influence 77 | 5 77 Initial . | . . Average 4 | . 25 Influence Increases 304 | 40 264 Destroy 0b10 Robot/C 180 | . 180 Destroy 0b10 Robot/NC 55 | 40 15 Destroy Leader 54 | . 54 Disable Machine 15 | . 15 Influence Decreases 276 | 40 236 Time Decay 219 | 40 179 Lost Part 57 | . 57 Squads Dispatched 3 | . 3 Investigation . | . . Extermination . | . . Reinforcement 3 | . 3 Assault . | . . Garrison . | . . Intercept . | . . Searches Triggered . | . . Construction Impeded . | . . Haulers Reinforced . | . . Active Scanning Responses . | . . Cargo Convoy Interrupts . | . . Stealth | -11 -10 --------- Run | Yrd Mat Distress Signals 1 | . 1 Communications Jammed . | . . Distress Signals . | . . Times Spotted 19 | . 19 Peak Tracking Total 5 | . 5 Tactical Retreats . | . . Traps | -11 -10 ------- Run | Yrd Mat Traps Triggered . | . . Indirectly . | . . Trap Hack Attempts . | . . Triggered . | . . Disarmed . | . . Reprogrammed . | . . Reused . | . . Traps Extracted . | . . Installed . | . . Triggered . | . . Machines | -11 -10 ---------- Run | Yrd Mat Machines Disabled 1 | . 1 Max in Single Turn 1 | . 1 Machines Repaired . | . . Machines Dismantled . | . . Machines Sabotaged . | . . Overloaded Fab Kills . | . . Hacking | -11 -10 --------- Run | Yrd Mat Machines Accessed . | . . Terminals . | . . Fabricators . | . . Repair Stations . | . . Recycling Units . | . . Scanalyzers . | . . Garrison Access . | . . Total Hacks . | . . Successful . | . . Failed . | . . Catastrophic . | . . Database Lockouts . | . . Manual . | . . Terminals . | . . Fabricators . | . . Repair Stations . | . . Recycling Units . | . . Scanalyzers . | . . Garrison Access . | . . Terminal Hacks . | . . Fabricator Hacks . | . . Repair Station Hacks . | . . Recycling Unit Hacks . | . . Scanalyzer . | . . Garrison Access Hacks . | . . Unauthorized Hacks . | . . Terminals . | . . Fabricators . | . . Repair Stations . | . . Recycling Units . | . . Scanalyzers . | . . Garrison Access . | . . Data Cores Recovered . | . . Used . | . . Hacking Detections . | . . Full Trace Events . | . . Feedback Events . | . . Feedback Blocked . | . . Robot Schematics Acquired . | . . Robots Built . | . . Authchips . | . . Time . | . . Total Robot Build Rating . | . . Part Schematics Acquired . | . . Parts Built . | . . Authchips . | . . Time . | . . Total Part Build Rating . | . . Part Studies Acquired . | . . Parts Repaired . | . . Time . | . . Parts Recycled . | . . Recycled Matter . | . . Retrieved Matter . | . . Retrieved Components . | . . Parts Scanalyzed . | . . Part Schematics Acquired . | . . Parts Damaged . | . . Bothacking | -11 -10 ------------ Run | Yrd Mat Used RIF Installer . | . . Robots Hacked . | . . Non-combat . | . . Combat . | . . Robot Hacks Applied . | . . Relay Couplers Released . | . . Fabnet Peak Effective % . | . . Robots Rewired . | . . Allies Hacked . | . . Hacks Repelled . | . . Allies | -11 -10 -------- Run | Yrd Mat Total Allies . | . . Largest Group . | . . Highest-Rated Group . | . . Highest-Rated Ally . | . . Total Orders . | . . Ally Attacks . | . . Total Damage . | . . Kills . | . . Allies Corrupted . | . . Allies Melted . | . . Intel | -11 -10 ------- Run | Yrd Mat Active Infowar (turns) 2939 | 2524 415 Terrain 2917 | 2524 393 Seismic 881 | 668 213 Robot Analysis Total . | . . Derelict Logs Recovered . | . . Drone Launches . | . . Drone Recoveries . | . . Exploration | -11 -10 ------------- Run | Yrd Mat Turns Passed 3367 | 2778 589 Spaces Moved 1722 | 1331 391 Core 11 | 10 1 Treads 58 | 2 56 Legs 1450 | 1319 131 Wheels 42 | . 42 Hover . | . . Flight 161 | . 161 Fastest Speed 37 | 50 37 Average Speed 113 | 119 89 Slowest Speed 160 | 160 160 Overloaded Moves . | . . Propulsion Burnouts . | . . Robots Hopped . | . . Potential Cave-ins . | . . Cave-ins Triggered . | . . Exploration Rate (%) 43 | 30 57 Regions Visited 1 Branch Regions . Pre-discovered Areas . | . . Known Exits Taken . | . . Unknown Exits Taken 1 | 1 . Scrap Searched . | . . Spaces Dug 4 | 4 . Terrain Destroyed 9 | 9 . Melee . | . . Projectile 5 | 5 . AOE 4 | 4 . Terrain Rammed . | . . Walls Destroyed . | . . Machines Disabled . | . . Actions | -11 -10 --------- Run | Yrd Mat Total 2989 | 2437 552 Wait 1071 | 1040 31 Move 1721 | 1330 391 Hop . | . . Pick Up 40 | 13 27 Fast Attach . | . . Attach 29 | 10 19 Detach 5 | . 5 Swap 16 | 10 6 Drop 18 | 4 14 Fire 78 | 30 48 Melee . | . . Ram . | . . Kick 2 | . 2 Crush 9 | . 9 Escape Stasis . | . . Rewire . | . . Trap . | . . Miscellaneous . | . . Route ------- -11/Scrapyard -10/Materials (discovered 2 exits: [*Min x2]) History --------- Turn | Location | Event 13 | -11/Scrapyard | Discovered new exit (range 15) 2779 | -11/Scrapyard | Entered Materials 2783 | -10/Materials | Discovered new exit (range 7) 2796 | -10/Materials | Build established: Mutant 3054 | -10/Materials | Lost 3 parts (1p1u1w) 3096 | -10/Materials | Core integrity fell below 50% 3162 | -10/Materials | Lost 4 parts (1p1n1u1w) 3182 | -10/Materials | Core integrity fell below 20% 3348 | -10/Materials | Discovered new exit (range 16) 3368 | -10/Materials | Destroyed by G-47 Trooper with Particle Gun Last Messages --------------- 03307_ Dropped Wheel. 03307_ Acquired Lgt. Treads. 03314_ Acquired Flight Unit. 03316_ Dropped Lgt. Treads. 03316_ Acquired Flight Unit. 03319_ Acquired Lgt. Treads. 03320_ Dropped Ion Engine. 03321_ Acquired 25 matter. 03322_ Acquired Lgt. Ion Engine. 03324_ K-01 Serf collects debris. 03324_ Acquired Lgt. Assault Rifle. 03327_ Dropped Sml. Laser. 03327_ K-01 Serf collects debris. 03334_ Acquired Sml. Storage Unit. 03337_ Dropped Med. Storage Unit. 03337_ Dropped Imp. Terrain Scanner. 03340_ Acquired Transport Network Coupler. 03345_ Acquired Flight Unit. 03348_ EXIT=FOUND 03367_ Flight Unit destroyed. Map ----- +----------------------------------------------------+ | ????????????????????????? ?????????????????????? | | ????????????????????????? #????????????????????? | | ????????????????????????? #????????????????????? | | ????????????????????????? ##???????????????????? | | ????????????????????????? ????????????????????? | | ????????????????????????? ????????????????????? | | ????????????????????????? ????????????????????? | | ????????????????????????# #????????????????????? | | ????????????????????????# #????????????????????? | | ?????????#####??????????# #?###????????????????? | | ????# ??? #??????????/ # ?????????????????? | | ????# ?"" #??????????# # ??????????????????? | | ????# """ #??????????#a + ???????????????????? | | ????# """ #??????????# #????????????????????? | | ????# #??#???????# g #????????????????????? | | ????# """ #??????????# g#????????????????????? | | ??#?# """ #??????????# #????????????????????? | | ?#?## """ #??????????# #????????????????????? | | ???## #???######## #????????????????????? | | ??#?####+######### |# #????????????????????? | | ?##???# + ##[[[ # #????????????????????? | | ####### ## ##[[[ # #????????????????????? | | + ##*[ ##[[[ %# #????????????????????? | | ## ## = ## # #????????????????????? | | ## ## ## "T" # u#????????????????????? | | # ##/#########+#@ ### #??????????? | | !! # % ?????????? | | !! %/ T < ?????????? | | ! # % u o m ?????????? | | #% ##+##### ^^######+## ##?????????? | | #### ## ##^ o#???????? "!"!" #??????????? | | #??# ## ## #????? ???"!"!""????????? ?? | | ! #??# ## ## #? ?????########?????????? ? | | ######?## ## [ ## #? ?????# #??#????????? | | #???##??# T# ## ## ?????# !! #???????????? | | ?? #????# ## ## ##???? ?# =!! #???????????? | | ?? ?#???# ## ## %##??????# = ! #?????#?????? | | ???###### #########% #?????### = #??????????## | | ???# ######### ######### #???????????? | | ???+ % ##+################## | | ???# ^ ^ # ! | | ???# ^ [ ^ # | | ???# %!" T ^ # | | ???#^ """" """" """ """ + "T" | | ???# """" """" """ """ # """ | | ?## """" """" ^ """ """ #| | | ??# ###### | | ??# #??#?? | | ??# """ """ """ #?#??? | | ??# ? # ########### """ """ """ #????? | +----------------------------------------------------+ Best States ------------- Heat Dissipation 25 Energy Generation 10 Energy Capacity 250 Matter Stores 300 Matter Capacity 300 Sight Range 16 Terrain Scan Range 16 Terrain Scan Density 10 Additional Mass Support 6 Evasion (%) 62 Recoil Reduction 2 Item Schematics ----------------- None Robot Schematics ------------------ None Fabricated ------------ Nothing Repaired ---------- Nothing Studied --------- None Alien Tech Used ----------------- None Achievements -------------- None Challenges ------------ None Game ------ Seed WeightPlasmaExtrapolator Manual? 0 Play Time 00:36:48 Cumulative 9.7 hours Start 2026.02.18 @ 01:46:25 End 2026.02.18 @ 03:06:16 Sessions 1 Manual Loads 0 Difficulty Rogue Special Mode None Game No. 14 Rogue 10 Adventurer 0 Explorer 4 Win Type - Total 0 Types 0/0/0/0/0/0/0/0/0/0 Lore% 3 Gallery% 16 Achievement% 14 Wizard Run 0 Options --------- Layout 1 ASCII 0 Keyboard 0 Movement Mouse Keybinds 0 Fullscreen 2 Font 24/Terminus Map View 50x35 Zoom Use 0% Tactical HUD 1 Map Filters NONE Filters NONE Steam 1 RUN: a3e997e9-034e-490a-9672-b358481cee06